bitfinex/quotes_ETHUSD_20240621
["timestamp","ask_amount","ask_price","bid_price","bid_amount"]
[1718956796601,2.58670499,3482.8,3481.0,0.382641]
[1718956796801,5.58670499,3482.7,3481.1,0.3877641]
[1718956797007,5.58670499,3482.6,3481.1,0.3877641]
[1718956797307,2.08923584,3482.5,3481.1,0.3877641]
[1718956797512,2.08923584,3482.4,3480.9,3.495]
[1718956797680,2.58675234,3482.4,3480.9,3.495]
[1718956798004,3.032,3482.5,3480.9,3.495]
[1718956798005,5.58677071,3482.3,3480.9,3.495]
[1718956798312,2.58677071,3482.2,3480.9,3.495]
[1718956798468,5.58677071,3482.1,3480.9,3.495]
[1718956798667,2.58678543,3482.0,3480.9,3.495]
[1718956798900,2.58678543,3481.9,3480.9,3.495]
[1718956799103,2.58678543,3481.8,3480.9,3.495]
[1718956799302,2.08923584,3481.7,3480.9,3.495]
[1718956799488,4.75346377,3482.6,3480.9,3.495]
[1718956799489,2.08923584,3481.6,3480.9,3.495]
[1718956799715,2.58678718,3481.5,3480.9,3.495]
[1718956800023,3.0,3481.8,3480.9,3.495]
[1718956800305,2.08964688,3481.7,3480.9,3.47959]
[1718956800527,2.08964688,3481.7,3480.9,3.82909]
[1718956800747,3.0,3482.4,3480.9,3.82909]
[1718956800916,2.08942435,3482.3,3480.9,3.82909]
[1718956801110,2.08942435,3482.2,3481.0,0.382909]
[1718956801312,0.49748517,3482.1,3481.0,0.382909]
[1718956801647,2.08942435,3482.0,3481.0,0.382909]
[1718956801797,3.0,3482.2,3481.0,0.382909]
[1718956802002,0.49747858,3482.1,3481.1,0.3862499]
[1718956802246,0.49747858,3482.8,3480.9,3.47959]
[1718956802402,0.55,3482.7,3480.9,3.47959]
[1718956803112,3.09791178,3482.7,3480.9,3.47959]
[1718956803313,3.49749215,3482.6,3480.9,3.47959]
[1718956803524,3.49749215,3482.5,3481.0,0.347959]
[1718956803844,0.49749215,3482.4,3480.5,3.3136]
[1718956804142,0.49749215,3482.8,3480.6,3.8636]
[1718956804359,2.08931699,3482.7,3480.6,3.8636]
[1718956804552,2.08931699,3482.7,3480.7,3.82476]
[1718956804553,0.49749215,3482.6,3480.7,3.82476]
[1718956804730,0.49749215,3482.6,3480.8,3.9884]
[1718956804731,2.08931699,3482.5,3480.8,3.9884]
[1718956804926,0.49749215,3482.4,3480.8,3.9884]
[1718956805257,0.49749215,3482.4,3481.0,3.4384]
[1718956805258,3.49749215,3482.4,3481.0,3.4384]
[1718956805415,3.0,3482.4,3481.2,3.4384]
[1718956805614,3.0,3483.2,3481.4,3.4384]
[1718956805815,2.58637243,3483.1,3481.6,3.2646]
[1718956806016,5.58633101,3483.0,3481.7,0.02624641]
[1718956806339,5.58633101,3483.0,3481.6,3.2646]
[1718956806340,2.58633101,3482.9,3481.6,3.2646]
[1718956806549,3.0,3483.0,3481.7,0.32646]
[1718956806550,0.49735974,3482.8,3481.7,0.32646]
[1718956806722,0.49735974,3482.9,3481.7,0.32646]
[1718956807053,2.08915846,3482.8,3481.6,3.2646]
[1718956807359,2.08915846,3482.8,3479.7,3.4803]
[1718956807360,2.703,3482.2,3479.7,3.4803]
[1718956807554,2.05153217,3481.9,3479.7,3.4803]
[1718956807757,2.5865182,3481.8,3479.8,0.34803]
[1718956807946,2.05153217,3482.0,3479.8,0.34803]
[1718956807947,2.5865182,3481.7,3479.9,3.4803]
[1718956808121,5.12637237,3482.2,3479.9,3.4803]
[1718956808122,2.5865182,3481.6,3479.9,3.4803]
[1718956808326,3.0,3482.1,3479.9,3.4803]
[1718956808615,2.58715663,3482.0,3480.5,2.703]
[1718956808819,2.9065973,3483.1,3480.5,2.703]
[1718956808820,2.05153217,3482.9,3480.7,3.3538]
[1718956809029,2.703,3482.7,3480.7,3.3538]
[1718956809215,2.58656932,3482.6,3480.7,3.68918]
[1718956809445,2.58656932,3482.5,3480.7,3.68918]
[1718956809623,2.58656932,3482.4,3480.7,3.68918]
[1718956809814,2.58656932,3482.3,3480.8,0.368918]
[1718956810020,2.58656932,3482.2,3480.8,0.368918]
[1718956810217,2.58687788,3482.1,3480.7,3.3538]
[1718956810471,4.63867427,3482.0,3480.7,3.3538]
[1718956810631,2.58687788,3481.9,3480.7,3.3538]
[1718956810834,5.58687788,3481.8,3480.7,3.3538]
[1718956811066,2.58687788,3481.7,3480.7,3.3538]
[1718956811222,3.49742611,3481.6,3480.7,3.68918]
[1718956811567,3.49742611,3481.5,3480.7,3.68918]
[1718956811733,0.49742611,3481.4,3480.7,3.3538]
[1718956811923,0.4975674,3481.7,3480.7,3.3538]
[1718956812125,4.14103017,3483.9,3480.7,3.3538]
[1718956812126,0.49755228,3481.8,3480.7,3.3538]
[1718956812331,0.49755228,3482.4,3480.9,3.3023]
[1718956812547,0.49755228,3482.8,3481.1,3.6079]
[1718956812765,2.08916978,3482.7,3481.2,0.41579]
[1718956812922,2.58672206,3482.6,3481.2,0.41579]
[1718956813119,2.58672206,3482.5,3481.4,3.4558]
[1718956813320,0.49755228,3482.4,3481.5,0.55]
[1718956813522,4.75430852,3483.2,3481.4,3.4558]
[1718956813523,2.5488608,3483.1,3481.4,3.4558]
[1718956813821,2.05130852,3482.7,3481.4,3.4558]
[1718956814028,2.58686255,3482.6,3481.5,0.34558]
[1718956814229,2.58686255,3482.5,3481.4,3.4558]
[1718956814460,2.05130852,3483.0,3481.4,3.4558]
[1718956814461,0.49755228,3482.4,3481.4,3.4558]
[1718956814767,3.49755228,3482.9,3481.4,3.4558]
[1718956814928,2.08912803,3482.8,3481.4,3.4558]
[1718956815131,2.58656399,3482.8,3481.5,0.34558]
[1718956815333,3.0,3483.1,3481.5,0.34558]
[1718956815334,5.58656399,3482.7,3481.5,0.34558]
[1718956815682,2.58655781,3482.6,3481.4,3.4558]
[1718956815960,2.58655781,3482.6,3479.3,3.33747]
[1718956815961,2.05211698,3482.2,3479.4,3.4036]
[1718956816136,2.08912803,3482.1,3479.4,3.4036]
[1718956816335,2.05162891,3481.9,3479.5,4.244186]
[1718956816541,4.63830432,3481.8,3479.5,4.244186]
[1718956816847,5.58667541,3481.7,3479.5,4.244186]
[1718956817062,2.58667541,3481.6,3479.6,3.4336]
[1718956817280,5.58667541,3481.5,3479.8,3.4336]
[1718956817423,3.49754738,3481.4,3479.8,3.4336]
[1718956817766,0.49754738,3481.3,3479.9,3.4336]
[1718956818062,0.49756111,3481.6,3480.1,3.5197]
[1718956818273,2.08979335,3481.5,3480.1,3.5197]
[1718956818427,2.58735446,3481.4,3480.1,3.5197]
[1718956818627,2.58735446,3481.3,3480.1,3.87167]
[1718956818860,5.58735446,3481.2,3480.1,3.87167]
[1718956819166,0.49756111,3481.1,3480.1,3.87167]
[1718956819377,0.49756111,3481.1,3480.2,0.387167]
[1718956819578,0.49756111,3481.7,3480.3,3.3066]
[1718956819779,0.49756111,3481.9,3480.3,3.3066]
[1718956820091,2.08951328,3481.8,3480.5,3.3066]
[1718956820383,0.49756111,3481.7,3480.6,0.38566]
[1718956820596,0.49756111,3482.2,3480.7,3.99695142]
[1718956820740,0.49756111,3482.2,3480.8,3.84886114]
[1718956820940,2.05369309,3482.9,3480.9,0.55]
[1718956821249,7.33691668,3483.5,3480.8,3.84886114]
[1718956821250,2.05369309,3482.6,3480.8,3.84886114]
[1718956821434,2.05369309,3482.6,3480.9,0.42345211]
[1718956821435,2.58657573,3482.5,3480.9,0.42345211]
[1718956821638,2.58657573,3482.4,3481.0,3.4425]
[1718956821857,2.58657573,3482.3,3481.0,3.4425]
[1718956822055,0.49743234,3482.2,3481.1,0.38659521]
[1718956822280,0.49743234,3482.8,3481.1,0.38659521]
[1718956822581,0.49743234,3482.8,3481.2,3.4497]
[1718956822582,2.08912197,3482.7,3481.2,3.4497]
[1718956822743,0.49743234,3482.6,3481.3,0.93362952]
[1718956822940,2.08912197,3482.5,3481.3,0.93362952]
[1718956823139,0.49743234,3482.4,3481.3,0.93362952]
[1718956823645,0.49743234,3482.9,3481.4,3.5366]
[1718956823840,2.08895284,3482.8,3481.4,3.5366]
[1718956824179,2.58634158,3482.7,3481.5,0.44702295]
[1718956824501,5.58632542,3482.6,3481.5,0.44702295]
[1718956824786,0.49737258,3482.5,3481.5,0.44702295]
[1718956824963,3.0,3483.4,3481.3,0.55]
[1718956824964,3.49737258,3483.2,3481.6,3.98996229]
[1718956825162,2.58621896,3483.1,3481.6,3.98996229]
[1718956825339,5.58621896,3483.0,3481.7,0.39899623]
[1718956825544,2.58621896,3482.9,3481.7,0.39899623]
[1718956825778,5.58621896,3482.8,3481.8,0.39355962]
[1718956825961,5.58621583,3482.7,3481.8,0.39355962]
[1718956826164,0.49735564,3482.6,3481.8,0.39355962]
[1718956826464,5.55148905,3483.1,3481.6,3.5366]
[1718956826639,2.58624306,3483.0,3481.6,3.5366]
[1718956826844,5.08888742,3482.9,3481.6,3.5366]
[1718956827075,2.58628169,3482.8,3481.6,3.5366]
[1718956827379,5.58628169,3482.7,3481.6,3.5366]
[1718956827537,2.58628169,3482.6,3481.6,3.89026]
[1718956827739,0.49739427,3482.5,3481.6,3.89026]
[1718956828048,0.49739427,3482.6,3481.7,0.389026]
[1718956828249,5.05417636,3483.5,3481.7,0.389026]
[1718956828250,0.49739427,3483.1,3481.7,0.389026]
[1718956828452,2.08858442,3483.0,3481.8,4.0794]
[1718956828645,2.58597869,3482.9,3481.9,0.4468426]
[1718956828841,2.58597869,3482.9,3481.8,4.0794]
[1718956828842,2.58611733,3482.8,3481.8,4.0794]
[1718956829173,2.05417636,3483.5,3481.8,4.0794]
[1718956829336,2.58599666,3483.4,3481.8,4.0794]
[1718956829539,2.58599666,3483.3,3481.8,4.0794]
[1718956829759,5.58599666,3483.2,3481.9,0.40794]
[1718956829941,2.58599399,3483.1,3481.9,0.40794]
[1718956830137,2.58599399,3483.0,3482.0,0.448734]
[1718956830375,3.0,3483.2,3482.0,0.448734]
[1718956830376,2.58599399,3482.9,3482.0,0.448734]
[1718956830563,2.08867745,3482.8,3482.0,0.448734]
[1718956830749,3.0,3483.8,3482.1,0.4528134]
[1718956830750,5.05598266,3483.5,3482.1,0.4528134]
[1718956830958,5.58591747,3483.4,3482.1,0.4528134]
[1718956831173,2.58591747,3483.3,3482.2,3.4138]
[1718956831356,5.58591747,3483.2,3482.2,3.4138]
[1718956831557,2.58591747,3483.1,3482.3,0.38666134]
[1718956831799,2.08860592,3483.0,3482.3,0.38666134]
[1718956831949,2.58588443,3482.9,3482.2,3.4138]
[1718956832145,2.58588443,3482.8,3482.2,3.4138]
[1718956832458,2.05598266,3483.5,3482.2,3.4138]
[1718956832756,2.58589098,3483.4,3482.3,0.34138]
[1718956832943,5.08858523,3483.3,3482.3,0.34138]
[1718956833138,2.58589115,3483.2,3482.3,0.34138]
[1718956833366,5.08858523,3483.1,3482.2,3.4138]
[1718956833677,2.08858523,3483.0,3482.2,3.4138]
[1718956834276,2.05668779,3483.7,3482.2,3.4138]
[1718956834493,2.58577007,3483.6,3482.2,3.4138]
[1718956834673,5.58577007,3483.5,3482.3,0.34138]
[1718956834847,2.58577007,3483.4,3482.3,0.34138]
[1718956835173,2.58577007,3483.4,3482.2,3.4138]
[1718956835174,2.08838075,3483.3,3482.4,0.375518]
[1718956835373,2.05668779,3484.1,3482.5,3.4195]
[1718956835675,5.58546374,3484.0,3482.5,3.4195]
[1718956835883,5.58546374,3484.0,3482.6,0.9295018]
[1718956835884,2.08823471,3483.9,3482.6,0.9295018]
[1718956836042,2.08823471,3483.9,3482.7,3.59]
[1718956836246,2.58542804,3483.8,3482.7,3.59]
[1718956836483,3.0,3484.2,3482.9,3.59]
[1718956836703,2.58515915,3484.1,3482.9,3.59]
[1718956836894,5.42848067,3485.0,3482.9,3.59]
[1718956836895,2.08800679,3484.0,3482.9,3.59]
[1718956837049,2.08800679,3483.9,3482.9,4.0551171]
[1718956837385,3.0,3484.4,3482.9,4.0551171]
[1718956837548,2.58526239,3484.3,3482.9,4.0551171]
[1718956837754,5.58526239,3484.2,3482.9,4.0551171]
[1718956837972,5.58526239,3484.1,3483.0,0.40551171]
[1718956838195,2.58526239,3484.0,3483.0,0.40551171]
[1718956838452,5.58528553,3483.9,3482.9,3.59]
[1718956838643,2.58528553,3483.8,3482.9,3.59]
[1718956838848,3.0,3484.2,3482.9,3.59]
[1718956839043,2.08818488,3484.1,3482.9,3.59]
[1718956839298,0.49722821,3484.0,3482.9,3.59]
[1718956839509,2.05336441,3486.0,3483.6,3.4264]
[1718956839647,5.08536441,3485.9,3483.7,0.61294]
[1718956839847,5.08536441,3485.9,3483.6,3.4264]
[1718956839848,5.08536441,3485.6,3483.6,3.4264]
[1718956840057,5.08536441,3485.4,3483.6,3.4264]
[1718956840263,2.05336441,3485.7,3483.6,3.4264]
[1718956840591,3.032,3485.1,3483.6,3.4264]
[1718956840949,3.582,3485.0,3483.6,3.4264]
[1718956841148,0.55,3485.0,3483.6,3.4264]
[1718956841371,3.5825,3485.2,3483.6,3.4264]
[1718956841372,0.55,3485.1,3483.6,3.4264]
[1718956841755,3.55,3485.1,3483.6,3.4264]
[1718956842451,3.55,3485.1,3483.6,3.76904]
[1718956842656,3.0,3485.1,3483.6,3.76904]
[1718956844780,6.032,3485.3,3483.6,3.76904]
[1718956845092,6.032,3485.3,3483.6,3.4264]
[1718956845093,0.55,3485.2,3483.6,3.4264]
[1718956845256,3.0,3485.4,3483.6,3.4264]
[1718956845878,2.05000657,3485.8,3483.6,3.4264]
[1718956846063,5.08200657,3485.7,3483.7,0.61294]
[1718956846266,3.032,3485.3,3483.6,3.4264]
[1718956846476,3.032,3485.1,3483.6,3.4264]
[1718956846863,5.05000657,3485.2,3483.6,3.4264]
[1718956846864,6.582,3485.0,3483.6,3.4264]
[1718956847806,6.582,3485.0,3482.9,3.6018]
[1718956848005,6.582,3485.0,3483.0,0.63048]
[1718956848493,3.032,3484.8,3483.0,0.63048]
[1718956848701,3.55,3484.7,3483.0,0.63048]
[1718956849494,0.49716126,3484.6,3483.0,0.63048]
[1718956850497,3.0,3485.0,3483.0,0.63048]
[1718956850498,0.49716126,3484.9,3483.0,0.63048]
[1718956850734,0.49716126,3484.9,3483.1,0.693528]
[1718956851485,3.0,3485.0,3483.1,0.693528]
[1718956851486,6.032,3485.0,3483.1,0.693528]
[1718956851690,1.04713537,3484.9,3483.1,0.693528]
[1718956851896,3.52917195,3484.8,3482.9,3.6018]
[1718956852193,4.04717195,3484.7,3482.9,3.6018]
[1718956852495,0.49717195,3484.6,3482.9,3.6018]
[1718956852796,0.49718408,3484.6,3482.9,3.6018]
[1718956852998,3.49718408,3484.6,3483.0,0.36018]
[1718956853212,0.49718408,3484.5,3483.0,0.36018]
[1718956853504,1.04718408,3484.7,3483.0,0.36018]
[1718956854307,1.04718408,3484.7,3482.9,3.6018]
[1718956854308,4.07918408,3484.7,3482.9,3.6018]
[1718956854595,6.52922852,3484.6,3482.9,3.6018]
[1718956854757,4.07922852,3484.5,3482.9,3.6018]
[1718956854959,3.032,3484.3,3482.9,3.6018]
[1718956855155,8.94292459,3484.4,3482.9,3.6018]
[1718956855156,4.07922852,3484.2,3482.9,3.6018]
[1718956855368,0.49722852,3484.1,3482.9,3.6018]
[1718956855599,0.55,3484.0,3482.9,3.6018]
[1718956855813,1.04722852,3484.0,3482.9,3.6018]
[1718956855977,1.04722852,3484.0,3481.8,2.703]
[1718956855978,1.04722852,3484.0,3481.9,3.4205]
[1718956856180,1.04722852,3484.0,3482.0,0.61235]
[1718956856390,4.0,3483.7,3482.0,0.61235]
[1718956856574,3.49722852,3483.6,3482.1,3.5837]
[1718956856896,0.49722852,3483.5,3482.1,3.5837]
[1718956857102,0.49722852,3483.5,3482.2,0.419605]
[1718956857572,0.49727672,3483.5,3482.2,0.419605]
[1718956858400,0.49727672,3483.9,3482.2,0.419605]
[1718956858607,3.0,3483.9,3482.2,0.419605]
[1718956858803,0.49727672,3483.8,3482.2,0.419605]
[1718956858964,0.55,3484.0,3482.3,0.4003305]
[1718956859160,3.032,3483.9,3482.1,3.5837]
[1718956859373,1.04727672,3484.0,3479.7,2.29902]
[1718956859374,11.05587215,3483.8,3479.7,2.29902]
[1718956859702,3.032,3483.3,3480.6,3.5706]
[1718956859862,3.032,3483.3,3480.8,3.5706]
[1718956859863,2.58604131,3483.2,3480.8,3.5706]
[1718956860064,2.58604131,3483.1,3480.8,3.5706]
[1718956860265,2.58604131,3483.0,3480.8,3.5706]
[1718956860465,5.08876459,3482.9,3481.0,3.5706]
[1718956860775,0.49739417,3482.8,3481.0,3.5706]
[1718956861213,0.49738913,3483.1,3481.1,3.5427]
[1718956861477,0.49738913,3483.2,3481.2,6.2457]
[1718956861676,2.08893505,3483.1,3481.2,6.2457]
[1718956861913,3.13631993,3483.0,3481.2,3.5427]
[1718956862217,5.58631993,3482.9,3481.3,0.39440381]
[1718956862513,2.58631993,3482.8,3481.3,0.39440381]
[1718956862815,3.0,3482.9,3481.3,0.39440381]
[1718956863027,0.4973913,3482.8,3481.4,0.39371038]
[1718956863311,0.4973913,3483.2,3481.5,3.3567]
[1718956863612,0.4973913,3483.6,3481.8,3.3567]
[1718956863780,0.4973913,3483.6,3481.7,2.703]
[1718956863781,2.08865012,3483.5,3482.0,3.3938]
[1718956863979,0.4973913,3483.4,3482.0,3.3938]
[1718956864178,0.4973913,3484.0,3482.0,3.3938]
[1718956864409,2.08849569,3483.9,3482.1,0.33938]
[1718956864723,0.4973913,3483.8,3482.1,0.33938]
[1718956864904,2.08849569,3483.7,3482.2,3.3563]
[1718956865093,2.04782983,3484.6,3482.4,3.3563]
[1718956865281,2.58532604,3484.5,3482.6,3.3563]
[1718956865474,2.58532604,3484.4,3482.6,3.3563]
[1718956865823,2.703,3485.1,3482.8,3.3978]
[1718956865824,2.08814849,3484.3,3482.8,3.3978]
[1718956866116,2.703,3485.1,3483.0,3.2474]
[1718956866117,2.05318062,3485.0,3483.0,3.2474]
[1718956866335,2.58500942,3484.9,3483.1,0.37974]
[1718956866625,2.58500942,3484.8,3483.1,0.37974]
[1718956866809,5.58500942,3484.7,3483.1,0.37974]
[1718956866981,2.58500942,3484.6,3483.2,0.362714]
[1718956867178,3.0,3484.7,3483.2,0.362714]
[1718956867179,5.58500942,3484.5,3483.2,0.362714]
[1718956867386,2.58500942,3484.4,3483.2,0.362714]
[1718956867603,3.0,3484.7,3483.2,0.362714]
[1718956867604,2.08789602,3484.3,3483.2,0.362714]
[1718956867814,2.08789602,3484.3,3483.0,3.2474]
[1718956867815,3.0,3485.0,3483.3,0.3610114]
[1718956868079,2.58495333,3484.9,3483.3,0.3610114]
[1718956868302,5.58495333,3484.8,3483.3,0.3610114]
[1718956868505,5.58495333,3484.7,3483.3,0.3610114]
[1718956868712,2.08784768,3484.6,3483.4,3.6578]
[1718956868922,0.49709471,3484.5,3483.5,0.40188114]
[1718956869079,2.08784768,3484.4,3483.5,0.45923769]
[1718956869716,2.08784768,3484.3,3483.5,0.45923769]
[1718956869921,3.0,3485.1,3483.5,0.45923769]
[1718956869922,3.0,3485.1,3483.6,0.41170377]
[1718956870220,2.58490034,3485.0,3483.6,0.41170377]
[1718956870386,5.58490034,3484.9,3483.6,0.41170377]
[1718956870586,2.58490034,3484.8,3483.6,0.41170377]
[1718956870784,2.58490034,3484.7,3483.7,0.40695038]
[1718956871098,5.58490034,3484.6,3483.7,0.40695038]
[1718956871306,2.58490034,3484.5,3483.7,0.40695038]
[1718956871494,5.0878062,3484.4,3483.7,0.40695038]
[1718956871825,2.58495937,3484.3,3483.4,3.6578]
[1718956872054,2.58495937,3484.3,3482.5,0.890662]
[1718956872055,2.58502462,3484.2,3482.7,3.583]
[1718956872202,2.58502462,3484.2,3482.8,0.4473662]
[1718956872203,2.58502462,3484.1,3482.8,0.4473662]
[1718956872402,5.58502462,3484.0,3482.8,0.4473662]
[1718956872723,2.58502462,3483.9,3482.8,0.4473662]
[1718956872885,5.58502462,3483.8,3482.8,0.4473662]
[1718956873085,5.58502462,3483.8,3482.7,3.583]
[1718956873086,2.58502462,3483.7,3482.9,0.40303662]
[1718956873281,5.58502462,3483.6,3482.9,0.40303662]
[1718956873519,5.0878062,3483.5,3482.9,0.40303662]
[1718956873719,2.0878062,3483.4,3483.0,0.39860366]
[1718956873929,2.0878062,3483.3,3483.0,0.39860366]
[1718956874096,2.0878062,3483.2,3483.0,0.39860366]
[1718956874288,3.0,3484.0,3483.0,0.39860366]
[1718956874494,2.5856309,3483.9,3483.0,0.39860366]
[1718956874689,5.5856309,3483.8,3483.0,0.39860366]
[1718956874893,5.5856309,3483.7,3483.0,0.39860366]
[1718956875123,2.5856309,3483.6,3482.7,3.583]
[1718956875392,5.08839104,3483.5,3482.7,3.583]
[1718956875628,3.0,3484.2,3482.8,0.4473662]
[1718956875861,2.58531602,3484.1,3482.8,0.4473662]
[1718956876067,5.08813567,3484.0,3482.8,0.4473662]
[1718956876229,2.08813567,3483.9,3482.9,0.40303662]
[1718956876435,2.08813567,3483.8,3482.9,0.40303662]
[1718956876629,3.0,3484.5,3482.9,0.40303662]
[1718956876834,2.58513027,3484.4,3482.9,0.40303662]
[1718956877059,5.58513027,3484.3,3483.0,0.39860366]
[1718956877260,2.58513027,3484.2,3483.0,0.39860366]
[1718956877540,2.05300256,3484.6,3483.0,0.39860366]
[1718956877541,5.58513027,3484.1,3483.0,0.39860366]
[1718956877842,2.08799219,3484.0,3483.0,0.39860366]
[1718956878381,2.08799219,3483.9,3483.0,0.39860366]
[1718956878666,2.05398813,3484.6,3483.0,0.39860366]
[1718956878976,2.58508441,3484.5,3483.1,3.5443]
[1718956879182,2.05418418,3484.6,3483.1,3.5443]
[1718956879183,5.58508441,3484.4,3483.2,0.39429037]
[1718956879467,5.58508698,3484.3,3483.2,0.39429037]
[1718956879765,2.58508698,3484.2,3483.2,0.39429037]
[1718956879944,5.58508698,3484.1,3483.2,0.39429037]
[1718956880144,2.08795292,3484.0,3483.3,0.39385904]
[1718956880577,3.0,3484.5,3483.3,0.39385904]
[1718956880755,2.08770494,3484.4,3483.4,3.6649]
[1718956881072,2.05418418,3485.5,3483.5,2.84652]
[1718956881275,6.96488882,3486.0,3483.5,2.84652]
[1718956881276,2.58442148,3485.4,3483.7,3.6649]
[1718956881438,2.08741818,3485.3,3483.8,0.55]
[1718956881636,2.08741818,3485.2,3483.8,0.55]
[1718956881836,0.49698898,3485.1,3483.9,0.49054279]
[1718956882186,2.08741818,3485.0,3483.9,0.49054279]
[1718956882339,0.49698898,3484.9,3483.9,0.49054279]
[1718956882541,2.08741818,3484.8,3483.9,0.49054279]
[1718956882841,2.08741818,3484.8,3484.0,0.47054428]
[1718956883049,2.08741818,3484.7,3484.0,0.47054428]
[1718956883373,3.0,3485.4,3484.0,0.47054428]
[1718956883579,2.58456092,3485.3,3484.0,0.47054428]
[1718956883883,5.58456092,3485.2,3484.0,0.47054428]
[1718956884169,2.58456092,3485.1,3484.0,0.47054428]
[1718956884370,5.58456092,3485.0,3484.0,0.47054428]
[1718956884576,2.08753178,3484.9,3484.0,0.47054428]
[1718956884780,2.05268936,3485.8,3484.1,3.4535]
[1718956885077,2.58418696,3485.7,3484.2,0.39240443]
[1718956885251,8.88016043,3486.5,3484.2,0.39240443]
[1718956885252,2.58418696,3485.6,3484.2,0.39240443]
[1718956885438,6.4078,3486.5,3484.2,0.39240443]
[1718956885439,2.58418696,3485.5,3484.2,0.39240443]
[1718956885635,2.0872363,3485.4,3484.3,0.43164487]
[1718956885889,2.0872363,3485.3,3484.3,0.43164487]
[1718956886091,2.0872363,3485.2,3484.4,0.38851449]
[1718956886274,3.0,3486.0,3484.4,0.38851449]
[1718956886612,2.58422627,3485.9,3484.5,3.4523]
[1718956886769,3.0,3486.3,3484.5,3.4523]
[1718956886770,2.08726087,3485.8,3484.6,0.38408145]
[1718956886981,2.08726087,3485.7,3484.6,0.38408145]
[1718956887177,3.0,3486.4,3484.6,0.38408145]
[1718956887379,2.5839571,3486.3,3484.6,0.38408145]
[1718956887696,3.0,3486.4,3484.7,0.42248959]
[1718956887697,5.58395274,3486.2,3484.7,0.42248959]
[1718956887858,2.58395274,3486.1,3484.7,0.42248959]
[1718956888058,2.0870415,3486.0,3484.7,0.42248959]
[1718956888563,2.0870415,3485.9,3484.7,0.42248959]
[1718956888807,2.0870415,3485.8,3484.8,0.38747896]
[1718956888970,2.04972001,3486.6,3484.8,0.38747896]
[1718956889173,2.58397015,3486.5,3484.9,3.4508]
[1718956889379,5.58397015,3486.4,3484.9,3.4508]
[1718956889585,2.08705278,3486.3,3485.0,1.2041279]
[1718956889811,3.0,3486.4,3485.0,1.2041279]
[1718956890097,2.04972001,3487.3,3485.0,1.2041279]
[1718956890317,2.58345884,3487.2,3485.1,3.73176069]
[1718956890514,5.58345884,3487.1,3485.2,0.55]
[1718956890798,2.58344791,3487.0,3485.3,3.6581]
[1718956891000,5.58344791,3486.9,3485.4,0.55]
[1718956891303,5.58344791,3486.9,3485.5,0.42081]
[1718956891304,2.0866493,3486.8,3485.5,0.42081]
[1718956891595,3.0,3487.4,3485.5,0.42081]
[1718956891800,2.58337269,3487.3,3485.5,0.42081]
[1718956891961,5.58337269,3487.2,3485.5,0.42081]
[1718956892168,2.58337269,3487.1,3485.6,0.462891]
[1718956892361,3.0,3487.2,3485.6,0.462891]
[1718956892362,3.49680078,3487.0,3485.6,0.462891]
[1718956892598,3.0,3487.0,3485.6,0.462891]
[1718956892813,3.0,3487.6,3485.6,0.462891]
[1718956892997,3.0,3487.6,3485.7,3.5976]
[1718956892998,2.58331693,3487.5,3485.7,3.5976]
[1718956893202,5.58331693,3487.4,3485.8,0.4060491]
[1718956893412,5.58331693,3487.3,3485.8,0.4060491]
[1718956893583,2.58331693,3487.2,3485.8,0.4060491]
[1718956893781,3.0,3487.1,3485.9,0.40036491]
[1718956893988,3.0,3487.6,3485.9,0.40036491]
[1718956894294,2.58311429,3487.5,3485.9,0.40036491]
[1718956894494,3.49675532,3487.4,3485.9,0.40036491]
[1718956894708,2.58325221,3487.3,3486.0,0.39979649]
[1718956894912,3.49675532,3487.2,3486.0,0.39979649]
[1718956895083,0.49675532,3487.1,3486.0,0.39979649]
[1718956895412,0.49675532,3487.7,3486.0,0.39979649]
[1718956895619,2.08646295,3487.6,3486.0,0.39979649]
[1718956895822,0.49675532,3487.5,3486.0,0.39979649]
[1718956895977,2.08646295,3487.4,3486.0,0.39979649]
[1718956896181,0.49675532,3487.3,3486.0,0.39979649]
[1718956896378,3.49676302,3487.3,3486.0,0.39979649]
[1718956896624,3.0,3487.8,3486.0,0.39979649]
[1718956896818,0.49676777,3487.7,3486.1,3.4058]
[1718956897123,0.49673288,3487.7,3486.1,3.4058]
[1718956897287,3.0954256,3488.1,3486.1,3.4058]
[1718956897288,0.49673288,3488.0,3486.1,3.4058]
[1718956897487,2.08626944,3487.9,3486.2,0.34058]
[1718956897711,0.49672944,3487.8,3486.2,0.34058]
[1718956897906,3.49672944,3487.8,3486.2,0.34058]
[1718956898111,0.49672649,3487.7,3486.2,0.34058]
[1718956898322,0.49672649,3487.7,3486.3,0.374638]
[1718956898533,3.49672649,3487.7,3486.3,0.374638]
[1718956898839,0.49672649,3487.6,3486.3,0.374638]
[1718956900141,3.0,3487.7,3486.3,0.374638]
[1718956900310,0.4967627,3487.6,3486.3,0.374638]
[1718956900518,0.36240269,3488.1,3486.5,3.4205]
[1718956900519,0.4967627,3487.9,3486.5,3.4205]
[1718956900703,0.0954256,3488.1,3486.5,3.4205]
[1718956903747,0.59209889,3488.1,3486.5,3.4205]
[1718956904349,2.018,3487.9,3486.5,3.4205]
[1718956904534,0.49667329,3487.8,3486.5,3.4205]
[1718956904853,3.49667329,3487.8,3486.6,0.37985438]
[1718956905067,0.49667329,3487.7,3486.6,0.37985438]
[1718956905264,0.4967155,3487.7,3486.6,0.37985438]
[1718956905424,3.0,3487.8,3486.6,0.37985438]
[1718956905626,2.018,3487.9,3486.7,0.38003544]
[1718956905824,0.0954256,3488.1,3486.7,0.38003544]
[1718956906040,0.59214003,3488.1,3486.7,0.38003544]
[1718956906498,0.0954256,3488.1,3486.7,0.38003544]
[1718956906695,0.0954256,3488.1,3486.8,0.38005354]
[1718956907133,0.55,3488.0,3486.8,0.38005354]
[1718956907337,1.04668152,3488.0,3486.5,3.4205]
[1718956907540,0.4967592,3487.9,3486.5,3.4205]
[1718956907739,0.4967592,3488.0,3486.5,3.4205]
[1718956907987,0.4967592,3488.0,3486.6,0.34205]
[1718956908587,2.5147592,3488.0,3486.6,0.34205]
[1718956908873,3.4967592,3487.9,3486.6,0.34205]
[1718956909046,3.0954256,3488.1,3486.6,0.34205]
[1718956909047,0.4967592,3487.8,3486.6,0.34205]
[1718956909240,0.4967592,3487.9,3486.7,0.376255]